bitfinex/quotes_ETHUSD_20220309
["timestamp","ask_amount","ask_price","bid_price","bid_amount"]
[1646835185321,0.05299997,2744.5,2744.2,0.00398874]
[1646835185513,0.96401257,2744.5,2744.0,0.5]
[1646835185914,0.05093245,2744.4,2744.0,0.5]
[1646835186751,0.05093245,2744.4,2743.8,5.90242574]
[1646835186953,0.05093245,2744.4,2744.1,0.0038511]
[1646835187154,2.78426765,2744.4,2744.1,0.5038511]
[1646835187354,0.05111475,2744.2,2744.1,0.0038511]
[1646835187752,0.05111475,2744.2,2743.8,5.23267784]
[1646835187962,0.01171,2744.1,2744.0,0.00385114]
[1646835188154,0.01171,2744.1,2743.4,0.67256182]
[1646835188155,6.0,2744.0,2743.4,0.00281392]
[1646835188354,3.5,2743.9,2743.4,0.00281392]
[1646835188554,0.04600118,2743.8,2743.4,0.00281392]
[1646835189156,0.35769221,2744.1,2743.4,0.67256182]
[1646835189354,0.05769221,2744.1,2743.4,0.67256182]
[1646835189556,0.01171,2744.1,2743.4,0.67256182]
[1646835189753,0.01171,2744.1,2743.4,0.00281392]
[1646835190154,13.34182,2744.1,2743.4,0.00281392]
[1646835190404,0.04964805,2743.9,2743.4,0.00281392]
[1646835190609,0.04964805,2743.9,2743.6,0.00373259]
[1646835191004,2.78408995,2743.9,2743.6,0.00373259]
[1646835191207,0.04169236,2743.8,2743.6,0.00373259]
[1646835191404,0.04169236,2743.8,2743.5,0.90954278]
[1646835191607,0.04169236,2743.8,2743.6,0.90954278]
[1646835191807,0.04169236,2743.8,2743.7,0.90954278]
[1646835192209,0.95306236,2743.8,2743.7,0.90954278]
[1646835192608,0.91137,2743.8,2743.7,0.90954278]
[1646835193010,0.91137,2743.8,2743.6,0.00373259]
[1646835193414,15.31046875,2744.3,2743.6,4.41327537]
[1646835193415,0.00123875,2744.3,2743.6,4.41327537]
[1646835193612,0.00123875,2744.5,2743.8,0.911]
[1646835193814,0.00123875,2744.6,2743.9,0.90954278]
[1646835194050,2.745711,2744.7,2743.9,0.90954278]
[1646835194351,11.13,2744.5,2743.9,0.90954278]
[1646835194559,0.011796,2744.3,2743.9,0.90954278]
[1646835194756,11.13,2744.4,2744.3,0.00258123]
[1646835194957,17.575,2744.3,2743.9,0.90954278]
[1646835195359,17.575,2744.3,2744.0,0.90954278]
[1646835195560,18.48636,2744.3,2744.0,0.90954278]
[1646835195764,20.3978001,2744.3,2744.0,0.90954278]
[1646835195958,11.13,2744.2,2744.0,0.90954278]
[1646835196361,1.0,2744.2,2744.0,0.90954278]
[1646835196559,1.0,2744.2,2743.9,0.00377852]
[1646835196759,4.17457407,2744.3,2743.9,0.00377852]
[1646835196958,0.91131,2744.1,2743.9,0.00377852]
[1646835197366,11.575,2744.0,2743.5,0.90907911]
[1646835197580,11.575,2744.0,2743.4,0.00281392]
[1646835197581,11.13,2743.8,2743.4,0.00281392]
[1646835197804,11.13,2743.5,2743.4,0.00281392]
[1646835198001,0.445,2743.5,2743.4,0.00281392]
[1646835198202,11.575,2743.5,2743.4,0.00281392]
[1646835198407,0.445,2743.5,2743.4,0.00281392]
[1646835198605,1.445,2743.5,2743.4,0.00281392]
[1646835198805,0.445,2743.5,2743.4,0.00281392]
[1646835199207,0.745,2743.5,2743.4,0.00281392]
[1646835199707,0.445,2743.5,2743.4,0.00281392]
[1646835200305,0.745,2743.5,2743.4,0.00281392]
[1646835200710,0.3,2743.5,2743.4,0.00281392]
[1646835201559,18.04181,2743.4,2743.3,8.089e-05]
[1646835201760,21.575,2743.4,2743.3,8.089e-05]
[1646835202058,21.575,2743.4,2741.9,0.08619658]
[1646835202059,11.13,2743.1,2742.2,0.68567767]
[1646835202261,14.13,2742.9,2742.2,0.01592977]
[1646835202464,11.13,2742.7,2741.9,0.6697479]
[1646835202663,11.13,2742.5,2741.8,0.6697479]
[1646835202864,4.45747345,2742.8,2741.8,0.6697479]
[1646835202865,0.49515288,2742.4,2741.8,0.6697479]
[1646835203061,3.0357241,2742.5,2741.7,0.74462081]
[1646835203261,3.7357241,2742.5,2741.9,0.6697479]
[1646835203464,2.7357241,2742.5,2742.0,0.0766737]
[1646835203663,0.9119141,2742.5,2742.0,0.0766737]
[1646835203866,0.9119141,2742.5,2742.4,0.08726324]
[1646835205161,0.9119141,2742.5,2742.1,2.57188745]
[1646835205402,0.9119141,2742.5,2742.1,1.66027745]
[1646835205403,2.7354341,2742.5,2742.1,1.66027745]
[1646835205607,0.91148,2742.9,2742.3,0.07285791]
[1646835205807,0.91148,2742.9,2742.3,1.10720581]
[1646835206012,0.00123875,2743.3,2742.6,0.07864015]
[1646835206205,0.13819997,2743.5,2742.7,0.3646]
[1646835206206,0.13943872,2743.5,2742.7,0.3646]
[1646835206410,1.82271,2743.4,2742.9,0.9957966]
[1646835207007,0.91135,2743.1,2742.9,0.99377373]
[1646835207405,0.91135,2743.1,2743.0,0.00397827]
[1646835207606,0.86135,2743.1,2743.0,0.00397827]
[1646835208407,0.86135,2743.1,2742.8,0.08543652]
[1646835208806,0.86135,2743.1,2742.9,0.00397836]
[1646835209066,0.86135,2743.1,2742.5,0.07578876]
[1646835209451,3.5,2743.0,2742.5,0.07578876]
[1646835209654,11.13,2742.8,2742.2,2.996]
[1646835209854,6.0,2742.6,2741.0,2.78307282]
[1646835210056,6.0,2742.4,2740.9,0.06606929]
[1646835210259,11.43,2742.0,2740.4,1.33995564]
[1646835210461,0.01210568,2741.5,2740.2,0.5]
[1646835210660,12.9545236,2741.3,2740.2,0.5]
[1646835210854,0.07329381,2741.1,2740.2,0.5]
[1646835211058,11.575,2741.0,2740.7,0.01544495]
[1646835211259,0.3,2741.3,2740.7,0.01544495]
[1646835211659,0.06022417,2741.4,2740.7,0.01544495]
[1646835211860,10.03109,2741.6,2740.5,0.89150059]
[1646835211861,0.07166624,2740.9,2740.5,0.89150059]
[1646835212260,1.8247454,2741.0,2740.9,0.00392385]
[1646835212261,2.1247454,2741.0,2740.9,0.00392385]
[1646835212459,1.21259,2741.0,2740.9,0.00392385]
[1646835212659,0.91259,2741.0,2740.9,0.00392385]
[1646835212903,1.21259,2741.0,2740.9,0.00392385]
[1646835213102,1.22109,2741.0,2740.9,6.301e-05]
[1646835213501,1.22109,2741.0,2740.8,0.50386088]
[1646835213502,6.91259,2741.0,2740.8,0.50386088]
[1646835213910,0.91259,2741.0,2740.8,0.50386088]
[1646835214103,1.824774,2741.0,2740.8,0.50386088]
[1646835214303,1.824774,2741.0,2740.2,0.07652425]
[1646835214510,1.824774,2741.0,2739.1,18.15468]
[1646835214511,1.8245,2740.9,2739.7,3.06943893]
[1646835214707,17.13,2740.8,2740.4,0.01491749]
[1646835214906,17.13,2740.8,2740.4,0.0485617]
[1646835214907,0.445,2740.7,2740.4,0.0485617]
[1646835215107,0.445,2740.7,2740.4,0.04249358]
[1646835215309,0.9123212,2740.7,2740.4,1.09414329]
[1646835215706,0.9123212,2740.7,2740.4,1.08529392]
[1646835216112,0.9123212,2740.7,2740.4,1.99742392]
[1646835216571,0.9123212,2740.7,2740.5,0.07584738]
[1646835216963,3.5,2740.6,2740.1,3.0]
[1646835217167,5.945,2740.5,2739.5,0.06268778]
[1646835217361,0.91273,2740.3,2739.3,1.0]
[1646835217562,3.0,2739.9,2738.4,0.06536703]
[1646835217765,11.13,2739.5,2738.5,0.683784]
[1646835217959,11.13,2739.5,2737.4,1.33995564]
[1646835217960,6.0,2739.1,2737.4,1.33995564]
[1646835218160,2.7394661,2738.6,2737.6,1.01121759]
[1646835218361,0.91312,2738.5,2737.7,0.06164121]
[1646835218560,1.20812,2738.5,2737.4,1.3869397]
[1646835218761,1.50812,2738.5,2737.4,1.3869397]
[1646835218962,1.50812,2738.5,2738.3,0.5]
[1646835219171,1.20812,2738.5,2738.3,0.5]
[1646835219362,1.5078984,2738.5,2738.3,1.70685712]
[1646835219664,1.0,2740.1,2738.6,6.3646]
[1646835219865,0.011667,2740.8,2739.2,0.01295379]
[1646835220066,1.7250451,2740.2,2739.9,0.01239971]
[1646835220305,14.1002,2741.2,2739.9,0.01239971]
[1646835220306,0.9121541,2740.7,2739.9,0.01239971]
[1646835220706,1.06459235,2740.7,2740.1,3.0]
[1646835221005,11.4946,2740.5,2738.8,0.05186274]
[1646835221209,1.8250584,2740.1,2738.5,3.28531482]
[1646835221404,1.8250584,2740.1,2739.5,0.5]
[1646835221405,2.41187409,2740.1,2739.5,0.5]
[1646835221610,0.9125292,2740.0,2739.5,0.5]
[1646835221813,3.9506192,2740.0,2738.6,0.3646]
[1646835222009,3.33809,2740.0,2738.9,1.03968494]
[1646835222212,1.8252978,2739.8,2739.0,3.5]
[1646835222410,2.04206672,2739.8,2739.0,3.8646]
[1646835222610,1.2126489,2739.7,2739.0,0.3646]
[1646835222812,2.3200332,2739.7,2739.0,0.3646]
[1646835223010,2.3200332,2739.7,2739.5,0.5]
[1646835223311,1.4075532,2739.7,2739.3,0.91642081]
[1646835223511,1.1075532,2739.7,2739.4,0.41460358]
[1646835223810,1.1075532,2739.7,2739.5,0.05093547]
[1646835224064,1.1075532,2739.7,2739.4,4.3096]
[1646835224255,3.6499061,2739.6,2739.0,0.24640114]
[1646835224558,3.6499061,2739.6,2739.4,0.00396067]
[1646835224753,4.0347442,2739.6,2739.4,1.41243]
[1646835225156,4.0347442,2739.6,2738.8,0.8497878]
[1646835225157,0.07275496,2739.5,2738.8,0.8497878]
[1646835225354,2.7375795,2739.4,2738.6,0.19556751]
[1646835225555,0.08094861,2739.3,2738.6,0.19556751]
[1646835226055,0.08094861,2739.3,2739.1,1.50968223]
[1646835226257,1.2125265,2739.4,2739.1,1.50968223]
[1646835226456,3.0371662,2739.4,2739.2,0.8646]
[1646835226659,2.89635923,2739.4,2739.2,0.8646]
[1646835226958,2.89635923,2739.4,2739.2,0.5]
[1646835227164,0.48057463,2739.4,2739.2,0.5]
[1646835227560,0.07988772,2739.3,2739.2,0.5]
[1646835228601,0.07988772,2739.3,2739.2,1.4125]
[1646835228802,1.8246466,2739.8,2739.4,0.3646]
[1646835229008,0.08042789,2740.7,2739.7,11.4946]
[1646835229206,3.56557043,2741.3,2740.1,0.91203]
[1646835229403,0.9119879,2740.9,2740.6,0.5]
[1646835229606,1.09072115,2740.9,2740.6,0.5]
[1646835229809,1.09072115,2740.9,2740.5,1.85547442]
[1646835230603,1.09072115,2740.9,2740.3,0.05761534]
[1646835230804,0.07509382,2740.8,2740.0,0.79717755]
[1646835231003,0.9121174,2740.6,2740.0,1.40923755]
[1646835231203,0.9121174,2740.6,2740.4,0.5]
[1646835231404,9.1203971,2742.3,2740.6,4.5]
[1646835231668,4.2122,2743.0,2741.0,3.3646]
[1646835231669,1.011707,2742.7,2741.0,3.3646]
[1646835231867,0.011707,2742.7,2741.2,0.3646]
[1646835232067,0.011707,2742.7,2741.0,3.0]
[1646835232068,1.8227957,2742.7,2742.6,0.5]
[1646835232263,0.20250897,2742.8,2742.6,0.5]
[1646835232471,2.66566183,2742.8,2742.6,0.5]
[1646835232668,2.66566183,2742.8,2742.7,0.07129664]
[1646835233763,2.66566183,2742.8,2742.6,0.5]
[1646835233764,3.26566183,2742.8,2742.6,0.5]
[1646835233964,0.3,2742.7,2742.6,0.5]
[1646835234865,2.96566183,2742.8,2742.6,0.5]
[1646835234866,1.65654426,2742.8,2742.6,0.5]
[1646835235522,1.711238,2742.8,2742.6,0.5]
[1646835235921,0.04613123,2742.6,2741.9,4.0]
[1646835236118,0.04613123,2742.6,2741.9,3.0]
[1646835236319,0.95783123,2742.6,2741.9,3.0]
[1646835236522,0.95783123,2742.6,2741.8,1.2269067]
[1646835236720,1.2117468,2742.5,2741.8,2.1385467]
[1646835236921,0.00386577,2742.4,2741.9,0.91168]
[1646835237318,0.91173,2742.3,2741.9,0.91168]
[1646835237724,2.1234709,2742.3,2741.9,0.91168]
[1646835237920,2.1234709,2742.3,2742.1,0.5]
[1646835238119,2.4234709,2742.3,2742.1,0.5]
[1646835238420,1.51560676,2742.3,2742.1,0.5]
[1646835239263,1.51947258,2742.3,2742.1,0.5]
[1646835239462,1.51560672,2742.3,2742.1,0.5]
[1646835240060,2.42734672,2742.3,2742.1,0.5]
[1646835240264,0.04912716,2742.2,2742.1,0.5]
[1646835240462,2.42856556,2742.3,2742.1,0.5]
[1646835240661,0.05594526,2742.2,2742.1,0.5]
[1646835241466,2.42469974,2742.3,2742.1,0.5]
[1646835241667,1.51522958,2742.3,2742.1,0.5]
[1646835241868,0.60348868,2742.3,2742.1,0.5]
[1646835242070,0.00348868,2742.3,2742.1,0.5]
[1646835242269,0.011667,2743.0,2742.1,0.5]
[1646835242471,0.011667,2743.0,2742.1,2.73425]
[1646835242472,0.06642884,2743.0,2742.1,2.73425]
[1646835242671,0.06642884,2743.0,2742.7,0.5]
[1646835242915,1.14165,2742.6,2742.1,2.73425]
[1646835243109,0.05304258,2742.5,2742.1,2.73425]
[1646835243311,0.36808864,2742.3,2741.5,3.64681]
[1646835243507,0.49720755,2742.2,2741.5,3.64681]
[1646835243706,0.04825644,2742.1,2741.5,3.64681]
[1646835243908,1.87212644,2742.1,2741.5,3.64681]
[1646835244107,0.05633915,2741.9,2741.5,3.64681]
[1646835244610,0.8096,2741.8,2740.8,3.0]
[1646835244810,0.04871342,2741.7,2740.6,0.08138467]
[1646835245011,0.06040242,2741.7,2741.6,0.5]
[1646835245213,0.41877178,2741.5,2740.6,0.08138467]
[1646835245414,1.87901133,2741.4,2741.0,1.82429]
[1646835245611,2.07797639,2741.4,2741.0,1.82429]
[1646835247083,2.99015639,2741.4,2741.2,0.5]
[1646835247284,0.9121768,2741.3,2741.2,0.5]
[1646835247487,1.5121768,2741.3,2741.2,0.5]
[1646835249085,0.9121768,2741.3,2741.2,0.5]
[1646835249287,1.11114506,2741.4,2741.2,0.5]
[1646835250087,1.11114506,2741.4,2741.0,0.91215]
[1646835250307,1.11114506,2741.4,2740.9,1.82431]
[1646835250508,0.011705,2741.3,2740.9,1.82431]
[1646835251910,6.0,2741.2,2740.9,1.82431]
[1646835252111,6.0,2741.2,2740.6,1.82458]
[1646835252112,9.5706319,2741.2,2740.8,0.91232]
[1646835252313,11.1706319,2741.2,2740.8,0.91232]
[1646835252511,11.1706319,2741.2,2740.6,1.82458]
[1646835252715,1.8247508,2741.1,2740.6,1.82458]
[1646835252911,1.8247508,2741.1,2740.3,3.0]
[1646835252912,11.99620248,2741.0,2740.3,3.0]
[1646835253112,11.99620248,2741.0,2740.4,0.59693161]
[1646835253113,0.91251,2740.6,2740.4,0.59693161]
[1646835253314,1.39066475,2740.6,2740.4,1.50947161]
[1646835253510,1.39066475,2740.6,2740.4,0.91254]
[1646835253714,3.21576295,2740.6,2740.4,1.24774]
[1646835253912,3.21576295,2740.6,2740.5,0.59800453]
[1646835254157,1.21546791,2740.5,2740.4,0.3352]
[1646835254359,1.21546791,2740.5,2740.4,0.93325455]
[1646835254759,6.0,2740.4,2740.1,1.82499]
[1646835254960,6.215278,2740.4,2740.1,1.82499]
[1646835255158,7.215278,2740.4,2740.1,1.82499]
[1646835255358,0.9127073,2740.3,2739.9,1.82523]
[1646835255762,2.73802,2740.2,2739.9,1.81914658]
[1646835256162,3.73802,2740.2,2739.9,1.81914658]
[1646835256964,6.4760848,2740.2,2739.9,1.81914658]
[1646835257364,6.7760848,2740.2,2739.9,1.81914658]
[1646835257804,0.05252972,2740.1,2739.9,1.81914658]
[1646835258910,0.49752972,2740.1,2739.9,1.81914658]
[1646835259106,0.04421446,2740.0,2739.9,1.81914658]
[1646835259605,0.04421446,2740.0,2739.8,0.91261]
[1646835259807,0.05504254,2739.9,2739.8,0.91261]
[1646835260309,0.05504254,2739.9,2739.7,1.82532]
[1646835262562,11.19671554,2739.9,2739.7,1.82532]
[1646835262862,11.19671554,2739.9,2739.4,2.73808]
[1646835262863,0.04767157,2739.8,2739.4,2.73808]
[1646835263059,0.0520146,2739.7,2739.4,2.73808]
[1646835263768,0.011735,2739.6,2739.4,2.73808]
[1646835264161,0.05832155,2739.6,2739.4,2.73808]
[1646835264564,1.82539,2739.7,2739.4,2.73808]
[1646835265166,2.7381811,2739.7,2739.4,2.73808]
[1646835265411,1.82539,2739.7,2739.4,2.73808]
[1646835265616,1.0,2739.7,2739.4,2.73808]
[1646835265815,0.3,2739.9,2739.5,0.08504452]
[1646835266017,0.19103052,2740.0,2739.5,0.99780452]
[1646835266217,11.76603052,2740.0,2739.5,0.99780452]
[1646835266522,11.76603052,2740.0,2739.5,0.91276]
[1646835266717,11.14253804,2739.8,2739.1,2.73866]
[1646835266920,11.14253804,2739.8,2739.0,0.01578297]
[1646835266921,15.12595826,2739.7,2739.0,0.01578297]
[1646835267116,0.3646,2739.5,2738.7,3.65066]
[1646835267317,5.59418875,2739.4,2738.9,0.91293]
[1646835267519,5.2976,2739.4,2738.9,0.91293]
[1646835267718,2.7976,2739.4,2738.9,0.98269348]
[1646835267918,0.91294,2739.3,2738.9,0.98269348]
[1646835268920,0.91294,2739.3,2738.9,0.91293]
[1646835269662,0.91294,2739.3,2739.1,0.08475229]
[1646835270464,3.54592375,2739.2,2738.5,1.46017482]
[1646835270762,3.54592375,2739.2,2738.5,2.37320482]
[1646835270763,0.0465227,2738.9,2738.5,2.37320482]
[1646835270964,0.0465227,2738.9,2738.7,0.01577268]
[1646835271571,5.3024,2739.0,2738.5,1.46017482]
[1646835271572,11.13,2738.7,2738.5,1.46017482]
[1646835271776,15.11843508,2738.6,2738.5,7.482e-05]
[1646835271963,3.98843508,2738.6,2738.5,7.482e-05]
[1646835272165,0.9133,2738.4,2737.6,1.57883346]
[1646835272364,0.05257695,2738.3,2737.6,1.57883346]
[1646835272812,0.69921518,2737.7,2737.6,2.48339623]
[1646835273012,0.10510792,2737.7,2737.6,2.48645315]
[1646835273211,0.05257695,2738.3,2737.6,2.48645315]
[1646835273411,0.05257695,2738.3,2737.6,2.4864515]
[1646835273613,0.05257695,2738.3,2737.7,0.66853873]
[1646835273812,1.82648,2738.0,2737.7,0.66853873]
[1646835274014,0.19941341,2738.1,2737.7,0.73942131]
[1646835274215,0.19941341,2738.1,2737.8,1.36431828]
[1646835274216,0.3,2738.0,2737.8,1.36431828]
[1646835274416,0.19941341,2738.1,2737.8,1.27758]
[1646835274614,0.19941341,2738.1,2738.0,0.08061686]
[1646835274812,0.19941341,2738.1,2738.0,0.5885916]
[1646835275014,1.32807215,2738.5,2738.0,0.50797474]
[1646835275213,2.24115185,2738.5,2738.0,2.33407474]
[1646835275414,2.24115185,2738.5,2738.1,0.50797474]
[1646835275613,2.24115185,2738.5,2738.0,1.8261]
[1646835275614,2.24115185,2738.5,2738.2,0.50797474]
[1646835275816,2.24115185,2738.5,2738.3,0.50797474]
[1646835276017,2.24115185,2738.5,2738.1,0.00394345]
[1646835276018,0.04344121,2738.4,2738.1,0.00394345]
[1646835276319,0.04344121,2738.4,2737.8,0.47808931]
[1646835276320,4.74516473,2738.1,2737.8,0.47808931]
[1646835276568,5.04516473,2738.1,2737.8,0.47808931]
[1646835276761,6.04516473,2738.1,2737.8,0.47808931]
[1646835277564,0.91338,2738.0,2737.8,0.47808931]
[1646835277763,1.21338,2738.0,2737.8,0.47808931]
[1646835277963,0.00394345,2738.1,2737.8,0.47808931]
[1646835278163,0.00394345,2738.1,2737.9,3.5]
[1646835278362,0.00394345,2738.1,2738.0,0.47808931]
[1646835278762,0.00394345,2738.1,2737.9,0.47808931]
[1646835278961,0.91718805,2738.1,2738.0,0.47808931]
[1646835279161,1.12378096,2738.1,2737.9,0.47808931]
[1646835279362,1.72378096,2738.1,2737.9,0.47808931]
[1646835279766,3.42856096,2738.1,2737.7,0.91338]
[1646835280167,4.42856096,2738.1,2737.5,1.82672]
[1646835280418,0.04401534,2738.0,2737.6,0.47505052]
[1646835280618,0.04401534,2738.0,2737.8,0.00394376]
[1646835280817,1.82695,2737.9,2737.8,0.00394376]
[1646835281020,0.3,2737.9,2737.8,0.00394376]
[1646835281419,3.08443534,2738.0,2737.6,0.47502728]
[1646835281622,0.9133217,2737.8,2736.8,3.66900728]
[1646835281922,1.38241288,2737.8,2737.7,0.00394381]
[1646835282126,1.08241288,2737.8,2737.7,0.00394381]
[1646835282321,1.38241288,2737.8,2737.7,0.00394381]
[1646835282721,1.38241288,2737.8,2737.4,0.4748243]
[1646835282921,1.38241288,2737.8,2737.6,0.0039439]
[1646835283126,0.17037085,2737.8,2737.6,0.4787682]
[1646835283322,2.1078718,2737.6,2737.3,2.73953]
[1646835284159,2.1078718,2737.6,2737.5,1.16962116]
[1646835284360,2.1078718,2737.6,2737.5,1.24680243]
[1646835284862,2.7078718,2737.6,2737.5,1.24680243]
[1646835285059,2.70377808,2737.6,2737.5,1.24680243]
[1646835285459,2.70377808,2737.6,2737.5,1.16962116]
[1646835285862,2.70377808,2737.6,2737.5,1.53422116]
[1646835286464,1.96577884,2737.5,2737.3,1.27772]
[1646835286663,2.26577884,2737.5,2737.4,0.00237886]
[1646835287468,2.26577884,2737.5,2737.3,3.28718396]
[1646835287913,0.17607016,2737.5,2737.3,0.00382585]
[1646835288214,1.21322,2737.6,2737.3,0.00382585]
[1646835288812,1.21322,2737.6,2737.1,3.3646]
[1646835289112,3.0396765,2737.6,2737.3,0.00351685]
[1646835289811,3.0396765,2737.6,2737.1,0.3646]
[1646835290216,3.0396765,2737.6,2737.3,0.00351685]
[1646835290618,0.3,2737.6,2737.3,0.00042285]
[1646835290815,3.5,2737.5,2737.3,0.00042285]
[1646835291016,3.8,2737.5,2737.3,0.00042285]
[1646835291217,3.8,2737.5,2737.2,0.3646]
[1646835292263,4.71323,2737.5,2737.2,0.3646]
[1646835292463,4.71323,2737.5,2737.0,0.3646]
[1646835292671,4.71323,2737.5,2737.2,0.00225549]
[1646835292864,6.5399201,2737.5,2737.2,0.00225549]
[1646835293064,6.71144279,2737.5,2737.2,0.00225549]
[1646835293365,4.5857457,2737.3,2737.2,0.00225549]
[1646835293565,3.5,2737.3,2736.8,0.01625728]
[1646835293764,0.91336,2737.2,2736.8,0.03108072]
[1646835293966,3.8,2737.3,2736.8,0.03108072]
[1646835294165,3.8,2737.3,2736.8,1.06421945]
[1646835294365,3.8,2737.3,2736.9,1.03313873]
[1646835294567,3.8,2737.3,2737.2,1.11383416]
[1646835295066,2.18826972,2737.3,2737.2,1.11383416]
[1646835295313,2.18826972,2737.3,2737.0,0.68023673]
[1646835295510,2.18826972,2737.3,2737.1,0.9131]
[1646835295914,2.18826972,2737.3,2737.1,1.58163873]
[1646835296115,2.18826972,2737.3,2737.1,0.91679803]
[1646835296715,2.18826972,2737.3,2737.1,1.58533676]
[1646835296916,1.88826972,2737.3,2737.1,1.94993676]
[1646835297117,1.88826972,2737.3,2737.2,1.03313873]
[1646835297516,1.88826972,2737.3,2737.2,0.66853873]
[1646835297922,1.88826972,2737.3,2737.1,0.91679803]
[1646835297923,1.88826972,2737.3,2737.1,0.67223676]
[1646835298117,1.88826972,2737.3,2737.1,0.07706982]
[1646835298118,0.3,2737.2,2737.1,0.07706982]
[1646835298317,0.3,2737.2,2737.1,0.74191052]
[1646835298519,0.3,2737.2,2737.1,0.66853873]
[1646835298717,0.3,2737.2,2737.1,0.67223676]
[1646835298919,0.3,2737.2,2737.1,0.00369803]
[1646835299566,0.3,2737.2,2737.0,0.66853873]
[1646835299764,0.3,2737.2,2737.1,0.66853873]
[1646835300172,0.3,2737.2,2737.0,0.00369571]
[1646835300772,0.3,2737.2,2737.1,0.67198406]
[1646835300974,0.3,2737.2,2737.0,0.00369575]
[1646835301372,0.3,2737.2,2737.1,0.67193936]
[1646835301572,0.3,2737.2,2737.0,0.00369575]
[1646835301774,0.3,2737.2,2737.0,0.89150317]
[1646835301974,0.3,2737.2,2737.0,0.88780742]
[1646835302272,0.3,2737.2,2737.0,0.89150317]
[1646835302473,0.3,2737.2,2737.0,0.67604521]
[1646835302907,0.3,2737.2,2737.1,0.67234946]
[1646835303112,0.06980261,2737.2,2737.0,0.88780742]
[1646835303307,0.06980261,2737.2,2737.0,12.4131466]
[1646835303508,0.06980261,2737.2,2737.1,1.2831466]
[1646835303711,2.18826972,2737.3,2737.1,15.9131466]
[1646835303712,0.3,2737.3,2737.1,15.9131466]
[1646835303913,0.00369402,2738.4,2737.4,12.04302]
[1646835304114,0.00369402,2738.4,2737.6,0.67242591]
[1646835304315,2.90786902,2738.5,2737.7,0.67242591]
[1646835304517,2.90786902,2738.5,2737.8,0.39533918]
[1646835304714,0.00369444,2738.4,2737.9,0.39533918]
[1646835304917,1.11765456,2738.1,2738.0,0.39533918]
[1646835305119,0.04969679,2738.0,2737.4,3.0]
[1646835305315,2.78977679,2738.0,2737.4,3.0]
[1646835305518,3.10468,2738.0,2737.2,0.67612197]
[1646835305720,1.19511833,2737.7,2737.2,0.67242591]
[1646835305915,2.7402416,2737.6,2737.2,0.00369596]
[1646835306114,6.2402416,2737.6,2737.2,0.00369596]
[1646835306315,7.5402416,2737.6,2737.2,0.00369596]
[1646835306557,0.91339,2737.5,2737.2,0.00369596]
[1646835306762,0.91339,2737.5,2737.0,0.67242591]
[1646835306763,1.21339,2737.5,2737.1,0.67242591]
[1646835306961,1.21339,2737.5,2737.2,0.00369577]
[1646835307161,3.5,2737.4,2737.2,0.00369577]
[1646835307462,3.8,2737.4,2737.2,0.00369577]
[1646835307661,4.8,2737.4,2737.2,0.00369577]
[1646835308062,4.8,2737.4,2737.1,0.67242591]
[1646835308267,4.8,2737.4,2737.2,0.00369572]
[1646835309264,4.8,2737.4,2737.2,0.67242591]
[1646835309265,2.67279426,2737.3,2737.2,0.67242591]
[1646835309563,2.97279426,2737.3,2737.2,0.67612163]
[1646835310064,2.97279426,2737.3,2737.2,0.00369572]
[1646835310320,2.97279426,2737.3,2737.0,0.89656788]
[1646835310609,2.97279426,2737.3,2737.1,0.00369578]
[1646835310813,2.97279426,2737.3,2737.1,0.90026366]
[1646835311411,2.97279426,2737.3,2737.1,0.00369578]
[1646835311613,2.97279426,2737.3,2737.1,0.89656788]
[1646835311813,2.97279426,2737.3,2737.1,0.00369582]
[1646835312112,2.97279426,2737.3,2737.1,0.9002637]
[1646835312513,2.97279426,2737.3,2736.9,0.89656788]
[1646835312514,6.0,2737.2,2736.9,0.89656788]
[1646835312718,6.0,2737.2,2736.8,0.01625728]
[1646835312719,5.1646,2737.1,2736.8,0.01625728]
[1646835312915,3.5,2737.0,2736.8,0.01625728]
[1646835313116,1.8280557,2737.1,2736.8,0.01625728]
[1646835313318,3.5,2737.0,2736.8,0.01625728]
[1646835313514,0.04599127,2736.9,2736.8,0.01625728]
[1646835313713,4.62379109,2736.9,2736.8,0.01625728]
[1646835313915,8.07779982,2736.9,2736.8,0.01625728]
[1646835314165,4.8,2736.9,2736.8,0.01625728]
[1646835314366,3.8,2736.9,2736.8,0.01625728]
[1646835314565,6.47279426,2736.9,2736.8,0.01625728]
[1646835314767,7.47279426,2736.9,2736.8,0.01625728]
[1646835315166,6.74050149,2736.9,2736.8,0.01625728]
[1646835316366,10.24050149,2736.9,2736.8,0.01625728]
[1646835317368,7.04050149,2736.9,2736.8,0.01625728]
[1646835317571,10.54050149,2736.9,2736.8,0.01625728]
[1646835317821,7.04050149,2736.9,2736.8,0.01625728]
[1646835318716,7.04050149,2736.9,2736.8,0.06024129]
[1646835319114,6.16109653,2736.9,2736.8,0.06024129]
[1646835320521,6.16109653,2736.9,2736.8,0.06589729]
[1646835320522,3.67279426,2736.9,2736.8,0.06589729]
[1646835321562,3.67279426,2736.9,2736.8,0.99806548]
[1646835321563,2.67279426,2736.9,2736.8,0.99806548]
[1646835322170,2.97279426,2736.9,2736.8,0.99806548]
[1646835322566,2.67279426,2736.9,2736.8,0.06589729]
[1646835322767,2.67279426,2736.9,2736.8,0.74103001]
[1646835323567,2.67279426,2736.9,2736.8,1.71946178]
[1646835323970,2.67279426,2736.9,2736.8,1.04432906]
[1646835324169,2.97279426,2736.9,2736.8,1.71946178]
[1646835324368,2.97279426,2736.9,2736.8,1.03262506]
[1646835324869,2.97279426,2736.9,2736.8,0.72932601]
[1646835325327,2.97279426,2736.9,2736.8,1.06371976]
[1646835325514,3.97279426,2736.9,2736.8,0.38858704]
[1646835326113,3.97279426,2736.9,2736.8,0.40068304]
[1646835327119,3.97279426,2736.9,2736.8,0.39249558]
[1646835330570,2.67279426,2736.9,2736.8,0.40420958]
[1646835330865,2.67279426,2736.9,2736.8,1.0793423]
[1646835331065,2.67279426,2736.9,2736.8,0.40420958]
[1646835333214,2.67279426,2736.9,2736.8,1.30077746]
[1646835333614,2.97279426,2736.9,2736.8,0.40420958]
[1646835333816,2.97279426,2736.9,2736.8,1.30077746]
[1646835334020,0.91345,2737.3,2736.8,1.26498091]
[1646835334214,1.71571425,2737.5,2737.1,0.0119]
[1646835334414,0.71571425,2737.5,2737.2,0.33439375]
[1646835334614,1.0,2737.6,2737.3,0.33439375]